[Event "*** Titled Tuesday Blitz"]
[Site "Chess.com"]
[Date "2020.05.12"]
[Round "2"]
[White "gmelviro"]
[Black "Gerasimenyuk_Miha"]
[Result "1-0"]
[WhiteElo "2156"]
[BlackElo "2394"]
[TimeControl "180+1"]
[EndTime "10:18:22 PDT"]
[Termination "gmelviro won by resignation"]

1. c4 {[%clk 0:03:00.9]} 1... e5 {[%clk 0:02:59.3]} 2. g3 {[%clk 0:03:01.2]}
2... Nc6 {[%clk 0:02:58.6]} 3. Bg2 {[%clk 0:03:01.7]} 3... a6 {[%clk 0:02:58.7]}
4. Nc3 {[%clk 0:02:59.9]} 4... Bc5 {[%clk 0:02:59.1]} 5. e3 {[%clk 0:03:00.1]}
5... Ba7 {[%clk 0:02:58.2]} 6. Nge2 {[%clk 0:03:00.1]} 6... d6 {[%clk
0:02:57.7]} 7. d4 {[%clk 0:03:00]} 7... Nge7 {[%clk 0:02:56]} 8. d5 {[%clk
0:02:59.5]} 8... Nb8 {[%clk 0:02:54.7]} 9. e4 {[%clk 0:02:57.1]} 9... h5 {[%clk
0:02:53.4]} 10. h4 {[%clk 0:02:50.9]} 10... Bg4 {[%clk 0:02:49.1]} 11. Qd3
{[%clk 0:02:50.9]} 11... Nd7 {[%clk 0:02:46]} 12. Be3 {[%clk 0:02:50.3]} 12...
Bxe3 {[%clk 0:02:39.1]} 13. Qxe3 {[%clk 0:02:49.7]} 13... a5 {[%clk 0:02:37.6]}
14. O-O {[%clk 0:02:41.5]} 14... f5 {[%clk 0:02:32.2]} 15. f3 {[%clk 0:02:39.5]}
15... O-O {[%clk 0:02:27.5]} 16. fxg4 {[%clk 0:02:38.9]} 16... hxg4 {[%clk
0:02:25.1]} 17. exf5 {[%clk 0:02:35.8]} 17... Nxf5 {[%clk 0:02:23.6]} 18. Qg5
{[%clk 0:02:34.9]} 18... Qxg5 {[%clk 0:02:22.5]} 19. hxg5 {[%clk 0:02:34.9]}
19... Ne3 {[%clk 0:02:21.2]} 20. Rxf8+ {[%clk 0:02:33.9]} 20... Rxf8 {[%clk
0:02:20.6]} 21. Ne4 {[%clk 0:02:29]} 21... Nxc4 {[%clk 0:02:15.2]} 22. Rc1
{[%clk 0:02:26.2]} 22... Ndb6 {[%clk 0:02:10.7]} 23. b3 {[%clk 0:02:25.8]} 23...
Ne3 {[%clk 0:02:07.2]} 24. Rxc7 {[%clk 0:02:25.1]} 24... Nbxd5 {[%clk 0:02:05]}
25. Rxb7 {[%clk 0:02:25.3]} 25... Nxg2 {[%clk 0:02:03.7]} 26. Kxg2 {[%clk
0:02:17.8]} 26... Ne3+ {[%clk 0:02:03.5]} 27. Kh2 {[%clk 0:02:14.4]} 27... d5
{[%clk 0:01:59.6]} 28. Nd6 {[%clk 0:02:00.4]} 28... Rf2+ {[%clk 0:01:53.1]} 29.
Kh1 {[%clk 0:02:00.6]} 29... Rxe2 {[%clk 0:01:43.6]} 30. g6 {[%clk 0:02:00.9]}
30... Rf2 {[%clk 0:01:38.4]} 31. Nf7 {[%clk 0:01:53.6]} 31... Kf8 {[%clk
0:01:32.8]} 32. Nxe5 {[%clk 0:01:50.5]} 32... d4 {[%clk 0:01:29.8]} 33. Rd7
{[%clk 0:01:48]} 33... Nf5 {[%clk 0:01:25.3]} 34. Rf7+ {[%clk 0:01:43.2]} 34...
Ke8 {[%clk 0:01:23.3]} 35. Kg1 {[%clk 0:01:37.7]} 35... Rxa2 {[%clk 0:01:02.2]}
36. Rxf5 {[%clk 0:01:35.9]} 36... Ra1+ {[%clk 0:00:44.2]} 37. Kf2 {[%clk
0:01:35.5]} 37... Ra2+ {[%clk 0:00:43.4]} 38. Ke1 {[%clk 0:01:35.6]} 38... Rg2
{[%clk 0:00:42.3]} 39. Nxg4 {[%clk 0:01:34.2]} 39... Rxg3 {[%clk 0:00:41.7]} 40.
Ne5 {[%clk 0:01:34.2]} 40... Ke7 {[%clk 0:00:40]} 41. Nc6+ {[%clk 0:01:33.3]}
41... Kd6 {[%clk 0:00:34.5]} 42. Nxd4 {[%clk 0:01:30.5]} 42... Rxg6 {[%clk
0:00:33.3]} 43. Rxa5 {[%clk 0:01:28.3]} 43... Rg4 {[%clk 0:00:31]} 44. Nf5+
{[%clk 0:01:25.2]} 44... Kc6 {[%clk 0:00:28.7]} 45. Kd2 {[%clk 0:01:24.8]} 45...
Kb6 {[%clk 0:00:28]} 46. Re5 {[%clk 0:01:24.5]} 46... g6 {[%clk 0:00:24.8]} 47.
Ne3 {[%clk 0:01:24]} 47... Rg3 {[%clk 0:00:24.4]} 48. Kc3 {[%clk 0:01:24.3]}
48... Kc6 {[%clk 0:00:23.3]} 49. Kc4 {[%clk 0:01:23.8]} 49... Kb6 {[%clk
0:00:22.8]} 50. Re6+ {[%clk 0:01:23.4]} 50... Kc7 {[%clk 0:00:22.6]} 51. Nd5+
{[%clk 0:01:23.6]} 51... Kd7 {[%clk 0:00:21.9]} 52. Re4 {[%clk 0:01:20.2]} 52...
Kd6 {[%clk 0:00:20.4]} 53. b4 {[%clk 0:01:17.5]} 53... Rg1 {[%clk 0:00:20.2]}
54. Nc3 {[%clk 0:01:17.2]} 54... g5 {[%clk 0:00:19.9]} 55. b5 {[%clk 0:01:15.4]}
55... g4 {[%clk 0:00:19.8]} 56. Re3 {[%clk 0:01:14.5]} 56... g3 {[%clk
0:00:19.6]} 57. Rxg3 {[%clk 0:01:14.3]} 57... Rh1 {[%clk 0:00:15.1]} 58. Rg6+
{[%clk 0:01:12.9]} 58... Kc7 {[%clk 0:00:14.7]} 59. Nd5+ {[%clk 0:01:12.2]}
59... Kb7 {[%clk 0:00:14.3]} 60. b6 {[%clk 0:01:12.3]} 60... Rh5 {[%clk
0:00:13.2]} 61. Kc5 {[%clk 0:01:12]} 61... Ka6 {[%clk 0:00:12.8]} 62. Kc6 {[%clk
0:01:07.5]} 62... Rh1 {[%clk 0:00:11.5]} 63. Nc7+ {[%clk 0:01:07]} 63... Ka5
{[%clk 0:00:11.2]} 64. Rg5+ {[%clk 0:01:06.5]} 1-0

[Event "*** Titled Tuesday Blitz"]
[Site "Chess.com"]
[Date "2020.05.12"]
[Round "2"]
[White "LiemLe"]
[Black "Kingsman132"]
[Result "1-0"]
[WhiteElo "2945"]
[BlackElo "2345"]
[TimeControl "180+1"]
[EndTime "10:18:23 PDT"]
[Termination "LiemLe won on time"]

1. c4 {[%clk 0:03:00.9]} 1... e5 {[%clk 0:02:58.6]} 2. Nc3 {[%clk 0:03:00.3]}
2... Nc6 {[%clk 0:02:56.5]} 3. Nf3 {[%clk 0:02:57.6]} 3... Nf6 {[%clk
0:02:55.1]} 4. e3 {[%clk 0:02:57.2]} 4... d6 {[%clk 0:02:50.4]} 5. d4 {[%clk
0:02:56.5]} 5... exd4 {[%clk 0:02:50.1]} 6. exd4 {[%clk 0:02:57.4]} 6... g6
{[%clk 0:02:50.5]} 7. h3 {[%clk 0:02:55.2]} 7... Bg7 {[%clk 0:02:50.6]} 8. Bd3
{[%clk 0:02:51.9]} 8... O-O {[%clk 0:02:50.6]} 9. O-O {[%clk 0:02:52.1]} 9... d5
{[%clk 0:02:49.1]} 10. Re1 {[%clk 0:02:49.9]} 10... dxc4 {[%clk 0:02:41.7]} 11.
Bxc4 {[%clk 0:02:50.8]} 11... Bf5 {[%clk 0:02:42]} 12. Bg5 {[%clk 0:02:43.2]}
12... h6 {[%clk 0:02:37.5]} 13. Bh4 {[%clk 0:02:42.9]} 13... g5 {[%clk
0:02:26.4]} 14. Bg3 {[%clk 0:02:40.1]} 14... Ne7 {[%clk 0:02:13.6]} 15. Qb3
{[%clk 0:02:36.8]} 15... c6 {[%clk 0:02:01.3]} 16. Qxb7 {[%clk 0:02:33.7]} 16...
Nfd5 {[%clk 0:01:53.6]} 17. Bb3 {[%clk 0:02:22.1]} 17... g4 {[%clk 0:01:36.9]}
18. hxg4 {[%clk 0:02:13]} 18... Bxg4 {[%clk 0:01:37.8]} 19. Ne5 {[%clk
0:02:13.3]} 19... Be6 {[%clk 0:01:29.6]} 20. Nxc6 {[%clk 0:01:56.4]} 20... Nxc6
{[%clk 0:01:20.5]} 21. Qxc6 {[%clk 0:01:57.3]} 21... Rc8 {[%clk 0:01:21.1]} 22.
Qa6 {[%clk 0:01:50]} 22... Nb4 {[%clk 0:01:11.8]} 23. Qa4 {[%clk 0:01:42]} 23...
Nd3 {[%clk 0:01:09.3]} 24. Rxe6 {[%clk 0:01:40.4]} 24... fxe6 {[%clk 0:01:09.5]}
25. Bxe6+ {[%clk 0:01:41.3]} 25... Kh8 {[%clk 0:01:10.1]} 26. Bxc8 {[%clk
0:01:40.9]} 26... Qxc8 {[%clk 0:01:06.6]} 27. Qb5 {[%clk 0:01:37.5]} 27... Qf5
{[%clk 0:01:04.8]} 28. Qxf5 {[%clk 0:01:36.3]} 28... Rxf5 {[%clk 0:01:05.7]} 29.
b3 {[%clk 0:01:10]} 29... Bxd4 {[%clk 0:01:04]} 30. Rd1 {[%clk 0:01:10.5]} 30...
Bxc3 {[%clk 0:00:48.6]} 31. Rxd3 {[%clk 0:01:10.3]} 31... Bf6 {[%clk 0:00:43.6]}
32. Rd6 {[%clk 0:01:10]} 32... Kh7 {[%clk 0:00:34.2]} 33. Rd7+ {[%clk
0:01:09.7]} 33... Kg6 {[%clk 0:00:34.5]} 34. Rxa7 {[%clk 0:01:10.6]} 34... h5
{[%clk 0:00:34.9]} 35. Ra6 {[%clk 0:01:08.1]} 35... Kg5 {[%clk 0:00:33.4]} 36.
Rc6 {[%clk 0:00:56.6]} 36... h4 {[%clk 0:00:31.6]} 37. Bd6 {[%clk 0:00:56.2]}
37... Bd4 {[%clk 0:00:25.6]} 38. Rc2 {[%clk 0:00:54.2]} 38... Rd5 {[%clk
0:00:25.3]} 39. Be7+ {[%clk 0:00:52.8]} 39... Kg4 {[%clk 0:00:25.7]} 40. Re2
{[%clk 0:00:48.7]} 40... Be5 {[%clk 0:00:20.8]} 41. Kf1 {[%clk 0:00:46.7]} 41...
Rd1+ {[%clk 0:00:20.6]} 42. Re1 {[%clk 0:00:46.9]} 42... Rd5 {[%clk 0:00:21.2]}
43. Re4+ {[%clk 0:00:46.9]} 43... Kf5 {[%clk 0:00:19.1]} 44. Rxh4 {[%clk
0:00:46]} 44... Bf4 {[%clk 0:00:20]} 45. g3 {[%clk 0:00:45.5]} 45... Bg5 {[%clk
0:00:20.3]} 46. Bxg5 {[%clk 0:00:45.1]} 46... Kxg5 {[%clk 0:00:19.8]} 47. a4
{[%clk 0:00:45.4]} 47... Rd1+ {[%clk 0:00:19.8]} 48. Kg2 {[%clk 0:00:45.4]}
48... Rb1 {[%clk 0:00:20.7]} 49. Rb4 {[%clk 0:00:45.8]} 49... Kf5 {[%clk
0:00:21.3]} 50. a5 {[%clk 0:00:45.9]} 50... Ke5 {[%clk 0:00:22.2]} 51. a6 {[%clk
0:00:46.1]} 51... Kd5 {[%clk 0:00:23.1]} 52. a7 {[%clk 0:00:46.1]} 52... Kc5
{[%clk 0:00:24]} 53. Rc4+ {[%clk 0:00:45.6]} 1-0

[Event "*** Titled Tuesday Blitz"]
[Site "Chess.com"]
[Date "2020.05.12"]
[Round "2"]
[White "venus02"]
[Black "ADODOVE"]
[Result "0-1"]
[WhiteElo "2335"]
[BlackElo "2011"]
[TimeControl "180+1"]
[EndTime "10:18:23 PDT"]
[Termination "ADODOVE won by checkmate"]

1. e4 {[%clk 0:03:00.9]} 1... e5 {[%clk 0:02:58.3]} 2. Nf3 {[%clk 0:02:59.9]}
2... Nc6 {[%clk 0:02:58.1]} 3. d4 {[%clk 0:03:00]} 3... exd4 {[%clk 0:02:56.6]}
4. Nxd4 {[%clk 0:03:00.5]} 4... Nf6 {[%clk 0:02:55.4]} 5. Nc3 {[%clk 0:03:00.4]}
5... Bb4 {[%clk 0:02:53.5]} 6. Nxc6 {[%clk 0:02:59.6]} 6... bxc6 {[%clk
0:02:52.3]} 7. Bd3 {[%clk 0:03:00.2]} 7... O-O {[%clk 0:02:51.3]} 8. O-O {[%clk
0:02:59.7]} 8... d5 {[%clk 0:02:51.1]} 9. exd5 {[%clk 0:03:00]} 9... cxd5 {[%clk
0:02:50]} 10. Bg5 {[%clk 0:03:00.4]} 10... Be6 {[%clk 0:02:48.2]} 11. Bxf6
{[%clk 0:02:52.3]} 11... Qxf6 {[%clk 0:02:46.8]} 12. Nxd5 {[%clk 0:02:48.5]}
12... Bxd5 {[%clk 0:02:45.1]} 13. Qh5 {[%clk 0:02:48.2]} 13... Rfd8 {[%clk
0:02:17]} 14. Qxh7+ {[%clk 0:02:45.6]} 14... Kf8 {[%clk 0:02:16.3]} 15. c3
{[%clk 0:02:45.1]} 15... Bd6 {[%clk 0:02:04.4]} 16. Rfe1 {[%clk 0:02:39.8]}
16... Be6 {[%clk 0:02:03.3]} 17. Be4 {[%clk 0:02:34.4]} 17... Rab8 {[%clk
0:01:59.8]} 18. Re3 {[%clk 0:02:27.4]} 18... Qh6 {[%clk 0:01:52.8]} 19. Qxh6
{[%clk 0:02:16.6]} 19... gxh6 {[%clk 0:01:52.3]} 20. b3 {[%clk 0:02:15.3]} 20...
Rb5 {[%clk 0:01:49.4]} 21. Rae1 {[%clk 0:02:12.7]} 21... Rh5 {[%clk 0:01:24.8]}
22. g3 {[%clk 0:02:10]} 22... Bh3 {[%clk 0:01:11.8]} 23. Bf3 {[%clk 0:02:06.1]}
23... Rf5 {[%clk 0:01:06.4]} 24. Be2 {[%clk 0:01:52.8]} 24... Bc5 {[%clk
0:01:01.2]} 25. Rf3 {[%clk 0:01:39.1]} 25... Rxf3 {[%clk 0:00:58.6]} 26. Bxf3
{[%clk 0:01:39.5]} 26... Rd2 {[%clk 0:00:51.4]} 27. Be2 {[%clk 0:01:38.3]} 27...
Rxa2 {[%clk 0:00:40.8]} 28. b4 {[%clk 0:01:38]} 28... Bb6 {[%clk 0:00:39.1]} 29.
c4 {[%clk 0:01:26.6]} 29... Bd4 {[%clk 0:00:37]} 30. c5 {[%clk 0:01:24.7]} 30...
Bg4 {[%clk 0:00:31.7]} 31. Kf1 {[%clk 0:01:19.4]} 31... Bxe2+ {[%clk 0:00:27.9]}
32. Rxe2 {[%clk 0:01:19.2]} 32... Rxe2 {[%clk 0:00:27.4]} 33. Kxe2 {[%clk
0:01:18.9]} 33... a5 {[%clk 0:00:22.7]} 34. bxa5 {[%clk 0:01:18.3]} 34... Bxc5
{[%clk 0:00:21.4]} 35. f4 {[%clk 0:01:18.2]} 35... Ke7 {[%clk 0:00:20.3]} 36. h3
{[%clk 0:01:18.3]} 36... Kd6 {[%clk 0:00:20.9]} 37. Kd3 {[%clk 0:01:18.1]} 37...
Ba7 {[%clk 0:00:19.6]} 38. Kc4 {[%clk 0:01:17.5]} 38... c5 {[%clk 0:00:17.2]}
39. g4 {[%clk 0:01:17.3]} 39... Ke6 {[%clk 0:00:15.2]} 40. Kb5 {[%clk
0:01:13.3]} 40... Kd5 {[%clk 0:00:11.8]} 41. g5 {[%clk 0:01:13.1]} 41... hxg5
{[%clk 0:00:09.3]} 42. fxg5 {[%clk 0:01:13]} 42... c4 {[%clk 0:00:10.2]} 43. Kb4
{[%clk 0:01:12.1]} 43... Kd4 {[%clk 0:00:08]} 44. h4 {[%clk 0:01:12.2]} 44...
Kd3 {[%clk 0:00:07.4]} 45. h5 {[%clk 0:01:11.4]} 45... c3 {[%clk 0:00:07.1]} 46.
g6 {[%clk 0:01:11.6]} 46... c2 {[%clk 0:00:07.4]} 47. gxf7 {[%clk 0:01:11.4]}
47... c1=Q {[%clk 0:00:08.3]} 48. f8=Q {[%clk 0:01:11.3]} 48... Qc4+ {[%clk
0:00:08.3]} 49. Ka3 {[%clk 0:01:08.8]} 49... Bc5+ {[%clk 0:00:07.5]} 50. Qxc5
{[%clk 0:01:08.7]} 50... Qxc5+ {[%clk 0:00:07]} 51. Kb3 {[%clk 0:01:04.3]} 51...
Qc3+ {[%clk 0:00:06.1]} 52. Ka4 {[%clk 0:01:01.5]} 52... Kc4 {[%clk 0:00:05]}
53. a6 {[%clk 0:01:02]} 53... Qb4# {[%clk 0:00:04.8]} 0-1

[Event "*** Titled Tuesday Blitz"]
[Site "Chess.com"]
[Date "2020.05.12"]
[Round "2"]
[White "chesstatour"]
[Black "fidezivkovic"]
[Result "0-1"]
[WhiteElo "1931"]
[BlackElo "2365"]
[TimeControl "180+1"]
[EndTime "10:18:23 PDT"]
[Termination "fidezivkovic won on time"]

1. c4 {[%clk 0:03:00.9]} 1... e5 {[%clk 0:02:57.8]} 2. Nc3 {[%clk 0:03:01]} 2...
Nf6 {[%clk 0:02:57]} 3. Nf3 {[%clk 0:03:00.6]} 3... Nc6 {[%clk 0:02:55.7]} 4. d4
{[%clk 0:03:00.3]} 4... exd4 {[%clk 0:02:53.8]} 5. Nxd4 {[%clk 0:03:01.2]} 5...
Bb4 {[%clk 0:02:53.6]} 6. g3 {[%clk 0:03:00.5]} 6... O-O {[%clk 0:02:51.6]} 7.
Bg2 {[%clk 0:03:00.5]} 7... Re8 {[%clk 0:02:46.9]} 8. O-O {[%clk 0:02:58]} 8...
Ne5 {[%clk 0:02:42.7]} 9. Qb3 {[%clk 0:02:49.2]} 9... Bf8 {[%clk 0:02:38.4]} 10.
Rd1 {[%clk 0:02:38.1]} 10... d6 {[%clk 0:02:32.6]} 11. Bg5 {[%clk 0:02:15.3]}
11... h6 {[%clk 0:02:30]} 12. Bxf6 {[%clk 0:02:15.2]} 12... Qxf6 {[%clk
0:02:29.1]} 13. Nd5 {[%clk 0:02:15.1]} 13... Qd8 {[%clk 0:02:26.2]} 14. Rac1
{[%clk 0:02:14.3]} 14... c6 {[%clk 0:02:19.7]} 15. Ne3 {[%clk 0:02:09.5]} 15...
Qc7 {[%clk 0:02:06.8]} 16. Qc2 {[%clk 0:02:01.1]} 16... g6 {[%clk 0:02:03]} 17.
b4 {[%clk 0:01:31.4]} 17... a5 {[%clk 0:02:02]} 18. b5 {[%clk 0:01:26.8]} 18...
Bd7 {[%clk 0:01:23]} 19. h3 {[%clk 0:00:47.3]} 19... f5 {[%clk 0:01:01.3]} 20.
Nf1 {[%clk 0:00:20.7]} 20... Nf7 {[%clk 0:00:59.9]} 21. e4 {[%clk 0:00:17.3]}
21... c5 {[%clk 0:00:45.8]} 22. Ne2 {[%clk 0:00:14.2]} 22... Bg7 {[%clk
0:00:44.2]} 23. Nf4 {[%clk 0:00:11.7]} 23... Ng5 {[%clk 0:00:37.2]} 24. Nxg6
{[%clk 0:00:09.6]} 24... Nxe4 {[%clk 0:00:34.7]} 25. Bxe4 {[%clk 0:00:08.7]}
25... fxe4 {[%clk 0:00:33.5]} 26. Nf4 {[%clk 0:00:08.2]} 26... Be5 {[%clk
0:00:31.7]} 27. Qxe4 {[%clk 0:00:07.5]} 27... Bg7 {[%clk 0:00:26.9]} 28. Qd5+
{[%clk 0:00:06.6]} 28... Kh7 {[%clk 0:00:22.9]} 29. Qxd6 {[%clk 0:00:06.8]}
29... Qxd6 {[%clk 0:00:20.2]} 30. Rxd6 {[%clk 0:00:07.7]} 30... Bf5 {[%clk
0:00:19.5]} 31. Ne3 {[%clk 0:00:06.2]} 31... Be4 {[%clk 0:00:18.7]} 32. Rcd1
{[%clk 0:00:05]} 32... Bd4 {[%clk 0:00:16.7]} 33. Ned5 {[%clk 0:00:03.7]} 33...
Rf8 {[%clk 0:00:13.4]} 34. Rxd4 {[%clk 0:00:02.5]} 34... cxd4 {[%clk 0:00:12.2]}
35. Nh5 {[%clk 0:00:01.6]} 35... Bxd5 {[%clk 0:00:10.3]} 0-1

[Event "*** Titled Tuesday Blitz"]
[Site "Chess.com"]
[Date "2020.05.12"]
[Round "2"]
[White "stoleriu"]
[Black "Paralinch"]
[Result "0-1"]
[WhiteElo "2553"]
[BlackElo "2882"]
[TimeControl "180+1"]
[EndTime "10:18:24 PDT"]
[Termination "Paralinch won by resignation"]

1. e4 {[%clk 0:03:00.9]} 1... c6 {[%clk 0:02:59.6]} 2. Nf3 {[%clk 0:02:59.6]}
2... d5 {[%clk 0:03:00.5]} 3. exd5 {[%clk 0:03:00.5]} 3... cxd5 {[%clk
0:03:00.6]} 4. Ne5 {[%clk 0:02:54.1]} 4... a6 {[%clk 0:03:00.1]} 5. d4 {[%clk
0:02:52.3]} 5... Nf6 {[%clk 0:02:57.7]} 6. Bd3 {[%clk 0:02:51.7]} 6... Nc6
{[%clk 0:02:56.7]} 7. Nxc6 {[%clk 0:02:49.4]} 7... bxc6 {[%clk 0:02:57.6]} 8.
O-O {[%clk 0:02:50.3]} 8... Bg4 {[%clk 0:02:57.1]} 9. Qd2 {[%clk 0:02:47.3]}
9... e6 {[%clk 0:02:54.9]} 10. Re1 {[%clk 0:02:45]} 10... Be7 {[%clk 0:02:49.6]}
11. Nc3 {[%clk 0:02:44.5]} 11... O-O {[%clk 0:02:48.5]} 12. Qf4 {[%clk
0:02:31.4]} 12... Bh5 {[%clk 0:02:45.7]} 13. Bd2 {[%clk 0:02:17.2]} 13... Bg6
{[%clk 0:02:45.4]} 14. Bxg6 {[%clk 0:02:15.5]} 14... hxg6 {[%clk 0:02:46.3]} 15.
Qf3 {[%clk 0:02:16.1]} 15... Nd7 {[%clk 0:02:41.4]} 16. g3 {[%clk 0:02:10.8]}
16... c5 {[%clk 0:02:41.2]} 17. dxc5 {[%clk 0:02:07.9]} 17... Bxc5 {[%clk
0:02:39.3]} 18. Rad1 {[%clk 0:02:07.6]} 18... Qf6 {[%clk 0:02:39.4]} 19. Qxf6
{[%clk 0:02:05.5]} 19... gxf6 {[%clk 0:02:37.8]} 20. Na4 {[%clk 0:02:05.3]}
20... Rfc8 {[%clk 0:02:25.6]} 21. Re2 {[%clk 0:01:06.8]} 21... Ba7 {[%clk
0:02:13]} 22. Be1 {[%clk 0:00:46.3]} 22... Rc6 {[%clk 0:02:08.2]} 23. Kg2 {[%clk
0:00:45.9]} 23... Rac8 {[%clk 0:02:07.7]} 24. c3 {[%clk 0:00:41.2]} 24... f5
{[%clk 0:02:00.3]} 25. b3 {[%clk 0:00:35.1]} 25... Nf6 {[%clk 0:01:59.6]} 26. f3
{[%clk 0:00:34.3]} 26... Ne8 {[%clk 0:01:56.8]} 27. Nb2 {[%clk 0:00:33.3]} 27...
Nd6 {[%clk 0:01:52.9]} 28. Nd3 {[%clk 0:00:29.8]} 28... Nb5 {[%clk 0:01:53.2]}
29. Ne5 {[%clk 0:00:30.1]} 29... R6c7 {[%clk 0:01:49.7]} 30. c4 {[%clk
0:00:29.8]} 30... dxc4 {[%clk 0:01:42.9]} 31. Nxc4 {[%clk 0:00:30.7]} 31... Bd4
{[%clk 0:01:26.4]} 32. a4 {[%clk 0:00:17]} 32... Nc3 {[%clk 0:01:26]} 33. Bxc3
{[%clk 0:00:14.4]} 33... Bxc3 {[%clk 0:01:26.9]} 34. Rd6 {[%clk 0:00:14.6]}
34... Rb8 {[%clk 0:01:21.1]} 35. Rxa6 {[%clk 0:00:07]} 35... Rxb3 {[%clk
0:01:20.9]} 36. Nd6 {[%clk 0:00:06.9]} 36... Rb8 {[%clk 0:01:08.2]} 37. Nb5
{[%clk 0:00:06.7]} 37... Rcc8 {[%clk 0:00:59.1]} 38. Rc2 {[%clk 0:00:06.7]}
38... Bb4 {[%clk 0:00:59]} 39. Rxc8+ {[%clk 0:00:06.9]} 39... Rxc8 {[%clk
0:00:59.9]} 40. h4 {[%clk 0:00:04.8]} 40... Rc2+ {[%clk 0:00:57.5]} 41. Kh3
{[%clk 0:00:04.6]} 41... Ra2 {[%clk 0:00:54.2]} 42. Ra8+ {[%clk 0:00:05.2]}
42... Kg7 {[%clk 0:00:53.9]} 43. Nd4 {[%clk 0:00:04.7]} 43... e5 {[%clk
0:00:50.8]} 44. Nc6 {[%clk 0:00:04.8]} 44... Bc3 {[%clk 0:00:50.7]} 45. a5
{[%clk 0:00:03.6]} 45... e4 {[%clk 0:00:50.8]} 46. fxe4 {[%clk 0:00:04.5]} 46...
fxe4 {[%clk 0:00:51.7]} 47. a6 {[%clk 0:00:05.2]} 47... e3 {[%clk 0:00:49.7]}
48. Re8 {[%clk 0:00:02.1]} 48... Rxa6 {[%clk 0:00:49.6]} 49. Nd8 {[%clk
0:00:02.7]} 49... Bf6 {[%clk 0:00:44.6]} 50. Nb7 {[%clk 0:00:02.6]} 50... Bd4
{[%clk 0:00:40.9]} 51. Nd6 {[%clk 0:00:02.6]} 51... Rxd6 {[%clk 0:00:40.3]} 0-1

[Event "*** Titled Tuesday Blitz"]
[Site "Chess.com"]
[Date "2020.05.12"]
[Round "2"]
[White "harvsp123"]
[Black "Kezin_Roman"]
[Result "1/2-1/2"]
[WhiteElo "2527"]
[BlackElo "2782"]
[TimeControl "180+1"]
[EndTime "10:18:24 PDT"]
[Termination "Game drawn by repetition"]

1. d4 {[%clk 0:02:59.3]} 1... d5 {[%clk 0:03:00]} 2. c4 {[%clk 0:02:57.7]} 2...
e6 {[%clk 0:03:00.3]} 3. Nc3 {[%clk 0:02:56.4]} 3... c6 {[%clk 0:03:00]} 4. e4
{[%clk 0:02:51.9]} 4... dxe4 {[%clk 0:02:58.3]} 5. Nxe4 {[%clk 0:02:52.8]} 5...
Bb4+ {[%clk 0:02:58.3]} 6. Bd2 {[%clk 0:02:52.2]} 6... Qxd4 {[%clk 0:02:58.5]}
7. Bxb4 {[%clk 0:02:52.8]} 7... Qxe4+ {[%clk 0:02:58.8]} 8. Be2 {[%clk
0:02:53.7]} 8... Na6 {[%clk 0:02:58.8]} 9. Ba5 {[%clk 0:02:33.8]} 9... Qh4
{[%clk 0:02:58.3]} 10. Bc3 {[%clk 0:02:25]} 10... Nf6 {[%clk 0:02:57]} 11. Nf3
{[%clk 0:02:21.2]} 11... Qh6 {[%clk 0:02:55.4]} 12. Bd3 {[%clk 0:02:19.8]} 12...
O-O {[%clk 0:02:53.1]} 13. O-O {[%clk 0:02:19.2]} 13... Nc5 {[%clk 0:02:31.5]}
14. Bc2 {[%clk 0:02:17.9]} 14... Nce4 {[%clk 0:02:31.3]} 15. Be5 {[%clk
0:01:56.3]} 15... c5 {[%clk 0:02:17.3]} 16. h4 {[%clk 0:01:07]} 16... b6 {[%clk
0:02:12]} 17. Qe2 {[%clk 0:00:39.6]} 17... Bb7 {[%clk 0:02:11.7]} 18. Rad1
{[%clk 0:00:29]} 18... Qh5 {[%clk 0:01:49.7]} 19. Rfe1 {[%clk 0:00:10.6]} 19...
h6 {[%clk 0:01:40.9]} 20. Bxe4 {[%clk 0:00:09.8]} 20... Bxe4 {[%clk 0:01:31.1]}
21. Bxf6 {[%clk 0:00:10.2]} 21... Bxf3 {[%clk 0:01:31.3]} 22. Qxf3 {[%clk
0:00:10.6]} 22... Qxf3 {[%clk 0:01:31.3]} 23. gxf3 {[%clk 0:00:11.5]} 23... gxf6
{[%clk 0:01:31.7]} 24. Rd7 {[%clk 0:00:12.4]} 24... Rfd8 {[%clk 0:01:15.3]} 25.
Red1 {[%clk 0:00:12.8]} 25... Rxd7 {[%clk 0:00:42.1]} 26. Rxd7 {[%clk
0:00:13.7]} 26... f5 {[%clk 0:00:42.2]} 27. Kf1 {[%clk 0:00:13.4]} 27... Kg7
{[%clk 0:00:42.5]} 28. f4 {[%clk 0:00:12.8]} 28... Kf6 {[%clk 0:00:42.7]} 29.
Ke2 {[%clk 0:00:12.9]} 29... a5 {[%clk 0:00:33.6]} 30. Rb7 {[%clk 0:00:11.9]}
30... Rd8 {[%clk 0:00:30.7]} 31. Rxb6 {[%clk 0:00:11.5]} 31... Rd4 {[%clk
0:00:31]} 32. b3 {[%clk 0:00:10.1]} 32... a4 {[%clk 0:00:21.7]} 33. Rb5 {[%clk
0:00:09.3]} 33... axb3 {[%clk 0:00:21.8]} 34. axb3 {[%clk 0:00:09.5]} 34... Rxf4
{[%clk 0:00:21.9]} 35. Rxc5 {[%clk 0:00:09.6]} 35... Rxh4 {[%clk 0:00:22.2]} 36.
b4 {[%clk 0:00:09.5]} 36... Ke7 {[%clk 0:00:20.5]} 37. b5 {[%clk 0:00:09]} 37...
Kd6 {[%clk 0:00:19.8]} 38. Rc8 {[%clk 0:00:08.4]} 38... Kd7 {[%clk 0:00:17.5]}
39. Rc5 {[%clk 0:00:08.3]} 39... Kd6 {[%clk 0:00:16.9]} 40. Rc8 {[%clk
0:00:08.1]} 40... Kd7 {[%clk 0:00:17]} 41. Rc5 {[%clk 0:00:08.2]} 41... Kd6
{[%clk 0:00:14.9]} 1/2-1/2